bitfinex-derivatives/quotes_SOLF0:USTF0_20241212
["timestamp","ask_amount","ask_price","bid_price","bid_amount"]
[1734012321589,3.02,229.83,229.74,2.1758]
[1734012321891,16.00366819,229.85,229.7,2.658]
[1734012322091,3.02,229.86,229.78,2.1753]
[1734012322491,2.1748,229.84,229.73,16.00366819]
[1734012322793,2.17495323,229.89,229.73,16.00366819]
[1734012323191,2.17495323,229.89,229.8,2.1751]
[1734012323397,2.17495323,229.89,229.73,16.00366819]
[1734012323795,2.1747,229.86,229.77,2.1754]
[1734012323995,2.17495323,229.89,229.73,16.00366819]
[1734012324690,18.17862142,229.89,229.73,16.00366819]
[1734012325095,2.1749,229.84,229.75,2.1757]
[1734012325292,3.02,229.85,229.7,5.678]
[1734012325695,3.02,229.85,229.76,2.1756]
[1734012325901,3.02,229.85,229.73,16.00366819]
[1734012326305,3.02,229.85,229.77,2.1755]
[1734012327603,2.1751,229.82,229.77,2.1755]
[1734012327904,3.02,229.87,229.73,16.00366819]
[1734012328998,2.175,229.83,229.79,2.1753]
[1734012329202,3.02,229.87,229.73,16.00366819]
[1734012329795,2.1747,229.85,229.8,2.1752]
[1734012330196,2.17495323,229.89,229.73,16.00366819]
[1734012330498,2.17495323,229.89,229.77,16.00366819]
[1734012330701,2.17495323,229.89,229.78,2.7539]
[1734012331098,2.17495323,229.89,229.79,5.7645]
[1734012331804,2.17495323,229.89,229.8,2.1751]
[1734012332406,2.17495323,229.89,229.82,2.175]
[1734012332603,2.17495323,229.89,229.79,5.7645]
[1734012332809,2.1746,229.87,229.79,5.7645]
[1734012333010,2.17495323,229.89,229.79,5.7645]
[1734012333204,2.1745,229.88,229.79,5.7645]
[1734012333709,2.1745,229.88,229.84,2.1748]
[1734012334411,2.1745,229.88,229.79,5.7645]
[1734012334412,2.17495323,229.89,229.85,2.1747]
[1734012334608,2.17495323,229.89,229.79,5.7645]
[1734012334911,2.17495323,229.89,229.84,2.1748]
[1734012335108,2.17495323,229.89,229.79,5.7645]
[1734012336109,2.17495323,229.89,229.81,2.1751]
[1734012336302,2.17495323,229.89,229.79,5.7645]
[1734012336706,2.1747,229.86,229.79,5.7645]
[1734012337306,2.1746,229.87,229.79,15.75993683]
[1734012337708,2.17495323,229.89,229.82,2.175]
[1734012337915,2.1746,229.87,229.79,15.75993683]
[1734012338119,2.17495323,229.89,229.79,15.75993683]
[1734012338614,2.1746,229.87,229.79,15.75993683]
[1734012338916,2.1746,229.87,229.81,2.1751]
[1734012339210,2.1747,229.86,229.79,15.75993683]
[1734012339413,2.17495323,229.89,229.79,15.75993683]
[1734012339414,2.17495323,229.89,229.83,2.1749]
[1734012339808,2.1746,229.87,229.79,15.75993683]
[1734012340110,2.1746,229.87,229.83,2.1749]
[1734012341819,2.1745,229.88,229.79,15.75993683]
[1734012342418,4.34935323,229.89,229.85,2.1747]
[1734012342616,4.34935323,229.89,229.79,15.75993683]
[1734012342918,4.34935323,229.89,229.85,2.1747]
[1734012343514,4.34935323,229.89,229.86,2.1746]
[1734012343715,2.1745,229.88,229.79,15.75993683]
[1734012344121,2.17495323,229.89,229.79,15.75993683]
[1734012344319,2.1747,229.86,229.79,15.75993683]
[1734012344516,2.17495323,229.89,229.81,2.1751]
[1734012344715,12.17039006,229.89,229.79,5.7645]
[1734012344920,2.1751,229.82,229.79,2.8558]
[1734012345820,2.1749,229.84,229.8,2.1752]
[1734012346023,12.17039006,229.89,229.8,2.1752]
[1734012347020,12.17039006,229.89,229.78,2.7539]
[1734012347419,2.17495323,229.89,229.79,9.99543683]
[1734012347624,2.1745,229.88,229.79,12.76553683]
[1734012347820,2.1745,229.88,229.82,9.99543683]
[1734012348020,2.17495323,229.89,229.82,9.99543683]
[1734012348227,2.17495323,229.89,229.88,2.1745]
[1734012348925,2.1739,229.95,229.91,2.1742]
[1734012349520,2.1739,229.94,229.9,2.1743]
[1734012351632,2.1737,229.97,229.93,2.174]
[1734012351833,3.0,230.01,229.91,9.99543683]
[1734012352027,3.0,230.01,229.92,2.7765]
[1734012352222,3.0,230.01,229.98,2.1735]
[1734012352429,3.0,230.05,229.94,9.99543683]
[1734012352626,2.17353503,230.04,229.97,9.99543683]
[1734012354732,2.17353503,230.04,230.0,2.1733]
[1734012354733,0.48994,230.01,230.0,2.1733]
[1734012355227,0.48994,230.01,229.94,12.78313683]
[1734012355738,0.48994,230.01,230.0,2.1733]
[1734012357539,3.0,230.09,230.03,2.173]
[1734012357736,9.99543683,230.13,230.03,2.173]
[1734012358036,2.1724,230.1,230.05,2.1728]
[1734012358235,3.0,230.12,230.0,9.99543683]
[1734012358630,3.0,230.12,230.02,2.173]
[1734012358835,3.0,230.12,229.97,9.99543683]
[1734012359036,2.1728,230.06,230.0,2.1732]
[1734012359232,3.0,230.12,230.0,2.1732]
[1734012359535,3.0,230.12,230.01,2.1732]
[1734012360039,3.0,230.11,230.01,2.1732]
[1734012360435,3.0,230.11,229.98,5.16665269]
[1734012360631,9.99543683,230.1,229.98,5.16665269]
[1734012360831,9.99543683,230.1,229.94,2.7877]
[1734012360832,2.1732,230.02,229.94,12.78313683]
[1734012361038,9.99543683,230.1,229.94,12.78313683]
[1734012361538,9.99543683,230.1,229.99,2.1733]
[1734012362635,2.173,230.04,229.99,2.1733]
[1734012362837,9.99543683,230.1,229.94,15.78313683]
[1734012363037,9.99543683,230.07,229.94,12.78313683]
[1734012363941,3.0,230.08,229.97,9.99543683]
[1734012364139,3.0,230.1,230.0,9.99543683]
[1734012364344,5.1232016,230.13,230.0,9.99543683]
[1734012364639,3.0,230.12,230.02,2.1731]
[1734012365037,3.0,230.12,230.05,2.1728]
[1734012365038,2.1726,230.09,230.05,2.1728]
[1734012365343,3.0,230.12,230.0,9.99543683]
[1734012365534,3.0,230.12,230.03,9.99543683]
[1734012365736,2.7629,230.16,230.03,9.99543683]
[1734012365931,3.0,230.16,230.04,2.8684]
[1734012366135,2.172,230.15,230.06,9.99543683]
[1734012366335,3.0,230.19,230.09,9.99543683]
[1734012366732,3.0,230.19,230.12,2.1722]
[1734012366942,3.0,230.19,230.09,9.99543683]
[1734012367333,2.1717,230.17,230.12,2.1721]
[1734012367734,3.0,230.21,230.12,2.1721]
[1734012367939,3.0,230.21,230.09,9.99543683]
[1734012368242,2.1717,230.18,230.13,2.1721]
[1734012368636,3.0,230.21,230.13,2.1721]
[1734012369034,3.0,230.21,230.12,2.1722]
[1734012369239,2.1716,230.19,230.12,2.1722]
[1734012369435,3.0,230.21,230.12,2.1722]
[1734012369634,8.31174541,230.21,230.07,17.40099547]
[1734012369940,3.0,230.21,230.07,17.40099547]
[1734012370444,2.1717,230.18,230.13,2.172]
[1734012370746,3.0,230.21,230.11,17.40099547]
[1734012370942,20.08309547,230.3,230.11,17.40099547]
[1734012370943,2.7076,230.29,230.11,17.40099547]
[1734012371238,2.7076,230.29,230.15,17.40099547]
[1734012371239,3.0,230.28,230.15,17.40099547]
[1734012371445,2.1708,230.27,230.22,2.1712]
[1734012371746,2.8707,230.3,230.16,8.3738]
[1734012371747,5.8707,230.3,230.16,8.3738]
[1734012371939,2.8707,230.3,230.16,8.3738]
[1734012372141,5.8707,230.3,230.16,8.3738]
[1734012372341,2.1708,230.27,230.21,2.1713]
[1734012372543,3.0,230.31,230.16,8.3738]
[1734012372845,3.0,230.32,230.19,17.40099547]
[1734012373048,3.0,230.32,230.24,2.171]
[1734012373342,3.0,230.32,230.19,17.40099547]
[1734012373849,2.1709,230.26,230.2,2.1713]
[1734012374039,3.0,230.32,230.19,17.40099547]
[1734012374441,2.1709,230.26,230.21,2.1713]
[1734012374838,3.0,230.32,230.19,17.40099547]
[1734012375147,17.40099547,230.31,230.16,8.3738]
[1734012375341,17.40099547,230.31,230.16,5.4859]
[1734012375743,0.71809344,230.3,230.16,5.4859]
[1734012376246,2.1709,230.27,230.16,5.4859]
[1734012376448,0.71809344,230.3,230.19,17.40099547]
[1734012377350,0.71809344,230.3,230.26,2.1709]
[1734012378446,2.88859344,230.3,230.24,2.171]
[1734012378643,2.88859344,230.3,230.19,17.40099547]
[1734012379252,0.71809344,230.3,230.19,17.40099547]
[1734012379448,2.1706,230.29,230.24,2.171]
[1734012380643,2.1705,230.31,230.19,17.40099547]
[1734012380845,8.19254943,230.36,230.19,17.40099547]
[1734012381152,2.1704,230.31,230.25,2.1709]
[1734012381349,8.19254943,230.36,230.25,2.1709]
[1734012381750,8.19254943,230.36,230.24,2.171]
[1734012382750,2.1706,230.29,230.24,2.171]
[1734012383049,8.19254943,230.36,230.17,2.707]
[1734012383050,17.40099547,230.35,230.17,2.707]
[1734012383244,3.0,230.34,230.17,2.707]
[1734012383549,17.40099547,230.31,230.16,2.7701]
[1734012383945,17.40099547,230.31,230.16,4.9418]
[1734012384145,17.40099547,230.31,230.16,2.7701]
[1734012384650,5.19254943,230.36,230.16,2.7701]
[1734012384651,3.0,230.3,230.16,2.7701]
[1734012384849,3.0,230.3,230.17,2.7486]
[1734012386948,17.40099547,230.35,230.17,2.7486]
[1734012387144,3.0,230.34,230.17,2.7486]
[1734012387551,3.0,230.34,230.19,17.40099547]
[1734012387746,3.0,230.34,230.21,2.1713]
[1734012387747,2.1709,230.26,230.21,2.1713]
[1734012387950,3.0,230.34,230.21,2.1713]
[1734012388149,3.0,230.34,230.19,17.40099547]
[1734012388344,3.0,230.34,230.17,2.7486]
[1734012388850,3.0,230.34,230.17,4.9203]
[1734012388851,2.1712,230.22,230.17,4.9203]
[1734012389045,3.0,230.28,230.17,2.7486]
[1734012389245,3.0,230.28,230.11,17.40099547]
[1734012389443,22.97519547,230.27,230.11,17.40099547]
[1734012389855,25.74419547,230.27,230.11,17.40099547]
[1734012390247,25.74419547,230.27,230.07,17.40099547]
[1734012390648,2.1713,230.22,230.1,7.36887879]
[1734012390844,3.0,230.21,230.1,7.36887879]
[1734012391054,3.0,230.21,230.1,5.19657879]
[1734012391260,2.1719,230.16,230.1,5.19657879]
[1734012391546,3.0,230.21,230.1,5.19657879]
[1734012393548,3.0,230.21,230.11,17.40099547]
[1734012393954,2.1716,230.19,230.14,2.172]
[1734012394249,2.1716,230.19,230.11,17.40099547]
[1734012394551,25.74419547,230.27,230.11,17.40099547]
[1734012394552,3.0,230.24,230.11,17.40099547]
[1734012394757,2.8945,230.27,230.12,3.0]
[1734012394959,5.8117,230.33,230.22,2.1712]
[1734012395159,2.1709,230.26,230.22,2.1712]
[1734012395550,5.8117,230.33,230.23,2.1711]
[1734012395551,2.1705,230.3,230.23,2.1711]
[1734012395749,5.8117,230.33,230.23,2.1711]
[1734012395948,2.8117,230.33,230.21,10.86523143]
[1734012396355,16.43763143,230.35,230.24,10.86523143]
[1734012396356,2.8346,230.35,230.24,10.86523143]
[1734012396550,5.8346,230.35,230.24,10.86523143]
[1734012397158,5.8346,230.35,230.23,2.1711]
[1734012397159,2.1707,230.29,230.23,2.1711]
[1734012397368,2.1707,230.29,230.21,17.38107152]
[1734012397563,5.8346,230.35,230.21,17.38107152]
[1734012397753,2.1708,230.27,230.22,2.1712]
[1734012397958,5.8346,230.35,230.22,2.1712]
[1734012398961,2.1704,230.32,230.22,2.1712]
[1734012399261,5.8346,230.35,230.22,2.1712]
[1734012399652,2.1708,230.27,230.22,2.1712]
[1734012399856,3.0,230.33,230.22,2.1712]
[1734012400056,2.1705,230.3,230.22,2.1712]
[1734012400258,3.0,230.33,230.22,2.1712]
[1734012400953,2.1709,230.26,230.22,2.1712]
[1734012401157,3.0,230.33,230.2,2.1714]
[1734012402369,3.0,230.33,230.19,3.0]
[1734012402866,2.171,230.26,230.19,3.0]
[1734012403067,3.0,230.33,230.21,2.1713]
[1734012403866,2.98,230.32,230.21,2.1713]
[1734012404467,2.171,230.25,230.21,2.1713]
[1734012404663,2.98,230.32,230.19,3.0]
[1734012404868,2.1712,230.23,230.17,22.87177152]
[1734012405069,2.98,230.26,230.17,2.7011]
[1734012405265,2.98,230.26,230.16,2.7217]
[1734012405569,2.98,230.26,230.15,2.1719]
[1734012405769,2.98,230.26,230.14,2.7392]
[1734012406070,2.98,230.31,230.17,17.38107152]
[1734012406272,2.1709,230.26,230.18,5.8264]
[1734012406572,2.98,230.31,230.21,2.1712]
[1734012406968,2.171,230.25,230.21,2.1712]
[1734012407661,2.1711,230.24,230.21,2.1712]
[1734012408867,2.1712,230.23,230.19,2.1715]
[1734012409066,2.98,230.31,230.18,2.8464]
[1734012409365,2.98,230.31,230.17,17.38107152]
[1734012409366,2.1714,230.21,230.17,2.1717]
[1734012409569,2.98,230.31,230.14,5.7192]
[1734012410369,2.1713,230.22,230.14,5.7192]
[1734012410768,2.98,230.31,230.14,5.7192]
[1734012410966,2.1714,230.21,230.17,2.1716]
[1734012411270,2.98,230.31,230.17,2.1716]
[1734012411565,2.1708,230.27,230.17,2.1716]
[1734012411770,2.1708,230.27,230.14,5.7192]
[1734012411771,2.98,230.31,230.14,5.7192]
[1734012412071,2.1709,230.26,230.14,5.7192]
[1734012412379,2.98,230.31,230.17,17.38107152]
[1734012412873,2.1705,230.3,230.26,2.1708]
[1734012413171,2.98,230.31,230.21,17.38107152]
[1734012413465,2.1707,230.29,230.26,2.1708]
[1734012413665,2.98,230.31,230.26,2.1708]
[1734012413965,2.1704,230.31,230.21,17.38107152]
[1734012414166,2.1704,230.31,230.22,2.7076]
[1734012414367,2.1704,230.31,230.27,2.1707]
[1734012414567,2.1703,230.33,230.22,2.7076]
[1734012415473,2.1703,230.32,230.28,2.1706]
[1734012417672,2.1704,230.31,230.27,2.1708]
[1734012419765,87.02328191,230.4,230.29,10.86065058]
[1734012419971,2.98,230.39,230.29,10.86065058]
[1734012420172,90.00328191,230.4,230.29,10.86065058]
[1734012420372,87.02328191,230.4,230.29,10.86065058]
[1734012420567,2.1699,230.36,230.3,2.7527]
[1734012421465,2.1697,230.39,230.32,10.86065058]
[1734012421669,2.98,230.44,230.35,10.86065058]
[1734012422065,2.1694,230.42,230.35,10.86065058]
[1734012422271,2.98,230.49,230.38,10.86065058]
[1734012422576,2.1691,230.46,230.41,2.1694]
[1734012422874,2.1691,230.46,230.41,10.86065058]
[1734012423475,2.1691,230.46,230.41,13.03015058]
[1734012424276,10.86065058,230.58,230.44,10.86065058]
[1734012424478,3.69785235,230.57,230.44,10.86065058]
[1734012424777,2.98,230.57,230.44,10.86065058]
[1734012424976,2.1683,230.54,230.46,2.169]
[1734012425170,2.98,230.57,230.46,2.169]
[1734012425675,10.86065058,230.58,230.46,2.169]
[1734012425873,5.93947665,230.57,230.47,10.86065058]
[1734012426067,2.98,230.59,230.47,10.86065058]
[1734012426267,0.71799282,230.58,230.47,10.86065058]
[1734012426470,8.4104,230.6,230.47,10.86065058]
[1734012426670,2.1682,230.55,230.48,2.1687]
[1734012427180,2.168,230.57,230.47,13.02945058]
[1734012427395,8.4104,230.6,230.47,10.86065058]
[1734012427576,0.71791069,230.59,230.47,10.86065058]
[1734012427880,2.1683,230.53,230.5,10.86065058]
[1734012428077,2.98,230.71,230.51,2.98]
[1734012428275,2.1676,230.61,230.57,10.86065058]
[1734012429178,2.7895,230.7,230.57,10.86065058]
[1734012429477,0.71793062,230.69,230.6,10.86065058]
[1734012430078,2.7895,230.7,230.6,10.86065058]
[1734012430277,2.167,230.67,230.6,10.86065058]
[1734012430474,2.7895,230.7,230.6,10.86065058]
[1734012431471,7.91251527,230.7,230.6,10.86065058]
[1734012431676,2.792,230.72,230.6,10.86065058]
[1734012431677,2.1671,230.66,230.6,13.02825058]
[1734012432179,2.839,230.81,230.63,10.86065058]
[1734012432180,10.86065058,230.77,230.63,10.86065058]
[1734012432484,3.69841221,230.76,230.63,10.86065058]
[1734012432674,2.98,230.76,230.66,10.86065058]
[1734012432880,5.11544603,230.77,230.66,10.86065058]
[1734012433177,2.1668,230.7,230.66,10.86065058]
[1734012433379,2.98,230.79,230.66,10.86065058]
[1734012433574,0.71863817,230.78,230.66,10.86065058]
[1734012433776,2.1665,230.73,230.66,13.02775058]
[1734012433985,8.20315606,230.79,230.69,10.86065058]
[1734012433986,5.22315606,230.79,230.69,10.86065058]
[1734012434579,5.22315606,230.79,230.69,13.02745058]
[1734012434779,5.22315606,230.79,230.69,10.86065058]
[1734012434978,2.1662,230.76,230.69,13.02745058]
[1734012435299,5.22315606,230.79,230.69,13.02745058]
[1734012435479,2.7569,230.8,230.69,13.02745058]
[1734012435983,18.85918101,230.8,230.66,10.86065058]
[1734012436981,10.86065058,230.77,230.64,8.6786]
[1734012437376,18.85918101,230.8,230.66,10.86065058]
[1734012438881,2.96,230.79,230.66,10.86065058]
[1734012439078,2.1665,230.72,230.66,13.02775058]
[1734012439392,2.1665,230.72,230.66,10.86065058]
[1734012439581,2.1663,230.75,230.69,10.86065058]
[1734012439787,2.96,230.79,230.66,10.86065058]
[1734012440381,2.1667,230.71,230.66,10.86065058]
[1734012441087,10.86065058,230.77,230.64,2.8225]
[1734012441686,2.167,230.67,230.64,2.8225]
[1734012442085,10.86065058,230.77,230.64,2.8225]
[1734012442485,2.1669,230.68,230.64,2.8225]
[1734012443186,10.86065058,230.77,230.64,2.8225]
[1734012443586,2.1668,230.7,230.65,2.1672]
[1734012443887,13.82065058,230.77,230.64,2.8225]
[1734012444293,2.1673,230.64,230.6,10.86065058]
[1734012444492,5.24163043,230.8,230.61,2.16816269]
[1734012444493,13.82065058,230.71,230.61,2.16816269]
[1734012444790,2.8724,230.7,230.61,2.16816269]
[1734012445183,2.1675,230.62,230.61,2.16816269]
[1734012447194,2.1674,230.64,230.61,2.16816269]
[1734012447393,2.8724,230.7,230.61,2.16816269]
[1734012447593,2.96,230.69,230.61,2.16816269]
[1734012447992,2.1672,230.65,230.61,2.16816269]
[1734012448196,2.96,230.69,230.63,10.86065058]
[1734012448896,2.1671,230.67,230.63,10.86065058]
[1734012449294,2.96,230.74,230.63,10.86065058]
[1734012449494,2.1667,230.71,230.66,13.02775058]
[1734012450094,2.684,230.79,230.66,10.86065058]
[1734012450295,2.1667,230.7,230.66,10.86065058]
[1734012450894,10.86065058,230.77,230.63,10.86065058]
[1734012451195,10.86065058,230.74,230.62,5.5583]
[1734012451396,10.86065058,230.74,230.61,2.16816269]
[1734012452100,2.1672,230.65,230.61,2.16816269]
[1734012452496,2.1674,230.63,230.61,2.16816269]
[1734012452692,2.96,230.69,230.61,2.16816269]
[1734012453096,2.1673,230.64,230.61,2.16816269]
[1734012453299,2.96,230.69,230.61,2.16816269]
[1734012454096,2.1674,230.64,230.61,2.16816269]
[1734012456416,2.96,230.69,230.61,2.16816269]
[1734012457199,2.1675,230.62,230.61,2.16816269]
[1734012458001,2.1673,230.65,230.61,2.16816269]
[1734012458202,2.96,230.69,230.61,4.33566269]
[1734012458808,2.167,230.67,230.61,4.33566269]
[1734012459005,2.96,230.72,230.63,10.86065058]
[1734012459509,10.86065058,230.77,230.66,10.86065058]
[1734012459510,2.96,230.77,230.66,10.86065058]
[1734012460204,5.342,230.79,230.66,10.86065058]
[1734012460205,2.1665,230.73,230.68,2.1668]
[1734012460706,2.1666,230.72,230.68,2.1668]
[1734012461604,2.1666,230.72,230.67,2.167]
[1734012461809,10.86065058,230.77,230.63,16.44105058]
[1734012462111,10.86065058,230.77,230.66,13.02775058]
[1734012462309,2.1667,230.71,230.66,13.02775058]
[1734012462510,2.96,230.78,230.66,10.86065058]
[1734012462812,2.1661,230.77,230.69,10.86065058]
[1734012463002,95.06934233,230.8,230.69,10.86065058]
[1734012463202,89.8277119,230.8,230.74,2.1663]
[1734012463712,89.8277119,230.8,230.72,10.86065058]
[1734012464107,2.1661,230.77,230.72,10.86065058]
[1734012464506,89.8277119,230.8,230.72,13.02715058]
[1734012464810,2.1661,230.77,230.72,13.02715058]
[1734012466107,2.1658,230.8,230.75,13.02685058]
[1734012466303,2.96,230.84,230.75,10.86065058]
[1734012466602,2.1658,230.8,230.76,2.1661]
[1734012467002,2.1658,230.8,230.75,10.86065058]
[1734012467206,2.1659,230.79,230.75,10.86065058]
[1734012467905,2.96,230.84,230.72,13.02715058]
[1734012468710,2.1662,230.76,230.72,13.02715058]
[1734012470815,2.96,230.83,230.69,10.86065058]
[1734012472913,2.96,230.83,230.69,13.02745058]
[1734012473315,2.1665,230.73,230.69,13.02745058]
[1734012473514,2.96,230.83,230.63,5.5804]
[1734012473515,10.86065058,230.74,230.63,5.5804]
[1734012473807,2.96,230.73,230.63,5.5804]
[1734012474017,2.1672,230.66,230.63,5.5804]
[1734012474811,2.96,230.73,230.61,2.16816269]
[1734012475110,5.798,230.73,230.61,2.16816269]
[1734012475619,2.1671,230.66,230.62,0.74707]
[1734012476413,5.798,230.73,230.62,0.74707]
[1734012476414,10.86065058,230.71,230.62,0.74707]
[1734012476913,2.1673,230.64,230.62,0.74707]
[1734012477108,10.86065058,230.71,230.62,0.74707]
[1734012477508,2.1674,230.63,230.62,0.74707]
[1734012477714,5.22715892,230.72,230.62,0.74707]
[1734012478115,2.1672,230.65,230.62,0.74707]
[1734012478622,13.69865058,230.73,230.62,0.74707]
[1734012478814,2.96,230.72,230.62,0.74707]
[1734012479118,2.1668,230.69,230.62,2.91457]
[1734012479418,2.96,230.72,230.62,2.91457]
[1734012479918,2.1671,230.67,230.62,11.60772058]
[1734012480115,2.96,230.72,230.64,2.1673]
[1734012480413,2.96,230.72,230.62,11.60772058]
[1734012480619,2.96,230.72,230.65,2.1672]
[1734012480820,2.664,230.75,230.65,2.1672]
[1734012481016,10.86065058,230.76,230.67,2.167]
[1734012481218,2.96,230.75,230.65,10.86065058]
[1734012482417,2.1666,230.72,230.68,2.1668]
[1734012482721,2.96,230.81,230.71,10.86065058]
[1734012483015,2.166,230.78,230.71,10.86065058]
[1734012483215,2.166,230.78,230.72,2.6628]
[1734012484010,2.96,230.81,230.72,2.6628]
[1734012485718,2.166,230.78,230.74,2.1663]
[1734012486121,2.1661,230.77,230.73,2.1664]
[1734012487228,2.166,230.78,230.73,2.1664]
[1734012488924,2.1659,230.8,230.74,10.86065058]
[1734012489320,89.80572132,230.85,230.74,10.86065058]
[1734012490115,2.1659,230.8,230.76,2.1661]
[1734012490316,89.80572132,230.85,230.74,10.86065058]
[1734012490820,89.80572132,230.85,230.75,2.1662]
[1734012491223,2.96,230.85,230.75,2.1662]
[1734012491422,2.96,230.85,230.74,10.86065058]
[1734012491617,2.1656,230.82,230.77,2.166]
[1734012492019,2.1657,230.81,230.76,2.1662]
[1734012492228,2.96,230.87,230.74,10.86065058]
[1734012493726,2.1661,230.77,230.74,10.86065058]
[1734012494119,2.96,230.87,230.74,10.86065058]
[1734012494322,2.166,230.78,230.74,13.02695058]
[1734012494522,2.96,230.87,230.74,10.86065058]
[1734012495319,10.86065058,230.88,230.74,10.86065058]
[1734012495525,2.1656,230.83,230.79,2.1659]
[1734012496124,2.1656,230.82,230.78,2.166]
[1734012496825,5.2619,230.89,230.77,10.86065058]
[1734012497027,2.1654,230.84,230.8,2.1657]
[1734012498323,2.1655,230.83,230.8,2.1657]
[1734012498528,2.1655,230.83,230.79,2.1659]
[1734012498728,8.2619693,230.9,230.77,10.86065058]
[1734012498926,8.2619693,230.9,230.74,10.86065058]
[1734012498927,10.86065058,230.88,230.74,10.86065058]
[1734012499125,8.2619693,230.9,230.79,2.1659]
[1734012499425,5.3219693,230.9,230.79,2.1659]
[1734012499621,2.94,230.92,230.83,2.1655]
[1734012500226,2.1652,230.87,230.83,2.1655]
[1734012500431,2.94,230.92,230.82,2.1656]
[1734012500832,2.94,230.92,230.8,10.86065058]
[1734012501033,2.1651,230.88,230.83,2.1655]
[1734012501328,2.1651,230.88,230.8,10.86065058]
[1734012501933,2.6353,230.95,230.83,10.86065058]
[1734012502231,5.5753,230.95,230.83,10.86065058]
[1734012502434,5.5753,230.95,230.86,2.1652]
[1734012502832,2.6353,230.95,230.83,10.86065058]
[1734012503033,2.6353,230.95,230.87,2.1651]
[1734012504033,2.1648,230.91,230.86,13.02585058]
[1734012504240,2.1648,230.91,230.86,10.86065058]
[1734012505235,2.94,230.97,230.86,10.86065058]
[1734012505638,2.1647,230.93,230.89,2.1649]
[1734012505943,2.94,230.97,230.86,10.86065058]
[1734012506339,2.1648,230.92,230.87,2.1651]
[1734012506642,2.1648,230.92,230.86,10.86065058]
[1734012506839,2.94,230.97,230.86,10.86065058]
[1734012507240,2.1646,230.93,230.88,2.1649]
[1734012508547,2.94,230.97,230.86,10.86065058]
[1734012508736,2.94,230.97,230.84,8.2001]
[1734012509038,2.165,230.89,230.84,10.3655]
[1734012510141,2.165,230.88,230.84,10.3655]
[1734012510945,2.94,230.94,230.84,8.2001]
[1734012511148,2.94,230.94,230.78,2.7713]
[1734012511351,10.86065058,230.92,230.79,10.86065058]
[1734012511547,2.1658,230.81,230.78,5.5498]
[1734012511739,2.94,230.88,230.78,5.5498]
[1734012512142,2.94,230.88,230.79,10.86065058]
[1734012512445,2.94,230.91,230.82,10.86065058]
[1734012512946,2.165,230.89,230.85,2.1653]
[1734012513247,2.165,230.88,230.84,2.1654]
[1734012513445,2.94,230.91,230.82,10.86065058]
[1734012514644,2.1651,230.88,230.83,2.1655]
[1734012516254,2.1652,230.87,230.83,2.1655]
[1734012517845,2.94,230.93,230.82,13.02625058]
[1734012518443,2.94,230.93,230.83,2.1655]
[1734012518951,2.94,230.93,230.82,13.02625058]
[1734012519152,9.85717956,230.93,230.86,6.91717956]
[1734012520752,2.1651,230.88,230.79,2.8794]
[1734012520953,2.94,230.93,230.88,6.91717956]
[1734012521252,9.85717956,230.93,230.86,6.91717956]
[1734012521454,2.1651,230.88,230.86,6.91717956]
[1734012521750,9.85717956,230.93,230.86,6.91717956]
[1734012521948,2.1651,230.87,230.86,6.91717956]
[1734012522148,6.91717956,230.91,230.8,2.1658]
[1734012522354,6.91717956,230.89,230.82,6.91717956]
[1734012522549,6.91717956,230.89,230.8,6.91717956]
[1734012523549,2.1656,230.83,230.8,6.91717956]
[1734012524651,9.85717956,230.87,230.8,6.91717956]
[1734012524857,2.1657,230.81,230.8,6.91717956]
[1734012525048,6.91717956,230.85,230.74,2.1663]
[1734012525254,6.91717956,230.81,230.7,5.5458]
[1734012525453,9.85717956,230.81,230.73,6.91717956]
[1734012525757,2.1659,230.79,230.75,6.91717956]
[1734012525954,2.94,230.81,230.77,6.91717956]